Cogmind - Beta 14 @@@ ROGUE MODE // 2024.09.19 @ 10:08:09 Player: Zaros426 Result: Destroyed by Q8-2VM(z) with Makeshift Axe Performance ------------- Evolutions (4) 2000 Regions Visited (19) 3800 Robots Destroyed (243) 1215 Value Destroyed (9111) 9111 Prototype IDs (71) 1420 Alien Tech Used (0) 0 Bonus (6600) 6600 TOTAL SCORE: 24146 Bonus ------- Triggered High Security 500 High Alert Combat Kills 403 Follower Combat Kills 2682 Entered Garrisons 600 Used RIF Installer 2000 Aligned with FarCom 300 Met Data Miner 300 Friendly Fire -185 Cogmind --------- Core Integrity 0/850 Matter 0/300 Energy 50/100 System Corruption 43% Temperature Cool (0) Movement Core (1800) Ox35 Location -6/Zion Parts ------- > --- POWER (1) -------- (None) > --- PROPULSION (4) --- (None) > --- UTILITY (6) ------ Huge Storage Unit Makeshift System Shield > --- WEAPON (4) ------- Heavy Linear Accelerator > --- INVENTORY (25) --- Angular Momentum Engine Angular Momentum Engine Compact Wheel Advanced Sensor Array Improved Weapon Cycler Force Field Makeshift Hacking Suite Remote Datajack Field Lobotomy Kit (5) Great Axe Peak State ------------ > --- POWER ------------ Angular Momentum Engine > --- PROPULSION ------- Heavy Treads Heavy Treads > --- UTILITY ---------- Huge Storage Unit Advanced Visual Processing Unit 0b10 Decoder Chip [Scout] Heart of Steel > --- WEAPON ----------- KE Penetrator Enhanced Gauss Cannon Enhanced Gauss Cannon Hardcell Cannon > --- INVENTORY -------- Medium Treads Medium Treads Medium Treads Medium Treads Improved Cooling System High-capacity Storage Unit Compact Battery Compact Battery Advanced Sensor Array Core Analyzer Improved Weapon Cycler Improved Remote Shield Hacking Suite System Shield System Shield Relay Coupler [Hunter] System Restoration Module Heavy Linear Accelerator Remote Datajack Field Lobotomy Kit Great Axe Fire Trap Fire Trap [Rating: 97] Favorites ----------- Power Angular Momentum Engine Engine Angular Momentum Engine Power Core Nuclear Core Propulsion Light Treads Treads Light Treads Leg Carbon-fiber Leg Wheel Armored Wheel Hover Unit Aerolev Unit Flight Unit Flight Unit Utility Advanced Visual Processing Unit Device Improved Heat Sink Storage High-capacity Storage Unit Processor Advanced Visual Processing Unit Hackware Hacking Suite Protection Improved Heavy Armor Plating Weapon Enhanced Gauss Cannon Energy Gun Precision Beam Rifle Energy Cannon Beam Cannon Ballistic Gun KE Penetrator Ballistic Cannon Enhanced Gauss Cannon Launcher Guided EMP Blaster Special Weapon Remote Datajack Slashing Weapon Great Axe Special Melee Weapon Datajack Build | -11 -10 -10 -10 -9 -8 -8 -8 -8 -7 -7 -7 -7 -6 -6 -6 -6 -6 -6 -6 ------- Run | Yrd Mat Min Exi Min Mat Gar Mat Gar Fac Low Low Dat Pro Fac Gar Fac Low Low Zio Slots Evolved 8 | . . . . . 4 . . . 2 . . . . 2 . . . . . Power . | . . . . . . . . . . . . . . . . . . . . Propulsion 2 | . . . . . 2 . . . . . . . . . . . . . . Utility 4 | . . . . . . . . . 2 . . . . 2 . . . . . Weapon 2 | . . . . . 2 . . . . . . . . . . . . . . Parts Attached 346 | 6 11 8 2 2 22 12 36 25 50 8 15 3 17 21 38 20 12 11 27 Power 22 | 1 2 1 . . 1 . 2 3 4 . . 1 1 2 2 1 . . 1 Engine 15 | 1 2 1 . . . . . 2 3 . . 1 . 1 2 1 . . 1 Core 7 | . . . . . 1 . 2 1 1 . . . 1 1 . . . . . Reactor . | . . . . . . . . . . . . . . . . . . . . Propulsion 83 | 2 . 5 . . 4 5 10 8 10 . 3 . 5 5 7 5 . 5 9 Treads 46 | 2 . . . . 2 5 9 2 1 . . . . . 6 5 . 5 9 Leg 28 | . . 2 . . 1 . . 5 9 . 1 . 5 4 1 . . . . Wheel 6 | . . 3 . . 1 . . . . . 2 . . . . . . . . Hover 1 | . . . . . . . . . . . . . . 1 . . . . . Flight 2 | . . . . . . . 1 1 . . . . . . . . . . . Utility 77 | 1 5 1 1 . 1 2 6 2 10 6 5 . 1 3 8 8 4 3 10 Device 45 | . 2 1 . . 1 2 5 . 5 5 3 . . 1 4 4 4 3 5 Storage 7 | 1 3 . 1 . . . . . . . . . . . 1 1 . . . Processor 5 | . . . . . . . . 1 1 1 . . 1 . . . . . 1 Hackware 15 | . . . . . . . 1 . 4 . . . . 2 2 3 . . 3 Protection 5 | . . . . . . . . 1 . . 2 . . . 1 . . . 1 Artifact . | . . . . . . . . . . . . . . . . . . . . Weapon 164 | 2 4 1 1 2 16 5 18 12 26 2 7 2 10 11 21 6 8 3 7 Energy Gun 31 | . . . . . 9 2 4 3 5 . 4 . 2 2 . . . . . Energy Cannon 18 | . 2 . . 1 2 1 5 3 2 . . . . 1 1 . . . . Ballistic Gun 64 | 2 1 1 . 1 . 1 7 6 13 1 3 1 5 3 11 3 2 . 3 Ballistic Cannon 8 | . . . . . . . . . . . . . . . 1 . 3 1 3 Launcher 2 | . . . . . . . . . . . . . . 2 . . . . . Special Weapon 23 | . 1 . . . 4 1 . . 2 . . 1 1 2 6 3 . 1 1 Impact Weapon . | . . . . . . . . . . . . . . . . . . . . Slashing Weapon 13 | . . . . . . . . . 3 1 . . 2 1 2 . 3 1 . Piercing Weapon . | . . . . . . . . . . . . . . . . . . . . Special Melee Weapon 5 | . . . 1 . 1 . 2 . 1 . . . . . . . . . . Unidentified Prototypes 9 | . . . . . 1 . 1 . 2 . . . . 4 . . 1 . . Corrupted Parts 3 | . . . . . . . . . . . . . 3 . . . . . . System Corruption 13 | . . . . . . . . . . . . . 13 . . . . . . Parts Lost 84 | . 2 6 . . . 1 . 13 9 . 7 . 9 . . 10 . 3 24 Power 9 | . 1 1 . . . . . 2 1 . . . 1 . . 1 . . 2 Propulsion 32 | . . 4 . . . . . 5 3 . 3 . 3 . . 4 . 3 7 Utility 16 | . . . . . . . . 1 1 . 2 . 1 . . 1 . . 10 Weapon 27 | . 1 1 . . . 1 . 5 4 . 2 . 4 . . 4 . . 5 Highest Loss Streak 19 | . 2 6 . . . 1 . 10 3 . 3 . 5 . . 10 . 3 19 To Critical Strikes 2 | . . . . . . . . . . . 1 . . . . . . . 1 Average Slot Usage (%) 92 | . 99 97 100 83 91 98 99 82 94 100 93 92 85 99 93 91 76 89 92 Engine 5 | . 13 14 14 14 5 . . 2 4 7 7 7 2 . 6 5 6 6 5 Core 2 | . . . . . 3 9 9 6 1 . . . 2 5 . . . . . Treads 16 | . 28 2 . . 8 32 35 11 1 . . . . . 25 25 13 23 24 Leg 7 | . . 13 14 14 8 1 . 12 28 30 18 15 19 26 . . . . . Wheel 1 | . . 10 14 14 13 1 . . . . 5 7 2 . . . . . . Device 8 | . 13 14 14 14 9 9 7 2 5 9 3 . . . 5 5 9 12 16 Storage 7 | . 14 14 14 14 9 9 9 9 7 7 7 7 7 6 6 6 6 6 6 Processor 8 | . . . . . . . . . 6 12 15 15 17 20 13 13 13 13 12 Hackware 1 | . . . . . . . 1 . 4 . . . . 12 . . 1 . . Protection 1 | . . . . . . . . 5 1 . 3 7 2 . 5 5 . . 1 Energy Gun 6 | . . . . . 29 30 15 6 6 . 4 15 12 4 . . . . . Energy Cannon 2 | . 13 15 5 1 1 . 3 8 1 . . . . . . . . . . Ballistic Gun 12 | . 14 12 14 10 1 2 17 13 20 28 24 12 12 19 23 23 2 . 3 Ballistic Cannon 5 | . . . . . . . . . . . . . . . . . 19 20 17 Slashing Weapon 1 | . . . . . . . . . . 1 1 . 2 1 . . 3 6 2 Peak Build Rating 97 | 6 10 11 16 32 47 48 45 45 55 54 54 47 56 73 78 80 97 96 80 Average Rating 53 | 5 8 10 14 15 32 33 32 25 44 52 46 46 45 60 70 77 91 82 73 On Entrance 40 | . 6 10 11 16 15 38 32 29 30 54 53 46 47 54 62 76 56 95 76 Naked Turns . | . . . . . . . . . . . . . . . . . . . . Heaviest Build 136 | 14 32 32 51 48 70 70 64 71 70 69 71 73 73 66 98 103 136 136 136 Greatest Support 140 | 40 40 40 10 10 22 80 86 86 70 70 73 12 65 64 108 140 140 140 112 Greatest Overweight (x) 38 | . . 3 5 4 5 5 . 20 2 . 5 6 6 1 2 1 . 1 38 Average Overweight (x) . | . . 2 3 4 3 . . 1 . . 3 5 2 . . . . . 1 Largest Inventory Capacity 25 | 8 20 15 20 20 20 20 20 20 20 20 20 20 20 20 20 25 25 25 25 Average Capacity 20 | 7 13 15 19 20 20 20 20 20 20 20 20 20 20 20 20 20 25 25 25 Most Carried 25 | 3 15 15 20 20 20 20 20 20 20 20 20 12 20 20 20 20 25 25 25 Average Carried 19 | . 11 14 17 19 19 19 19 15 18 19 15 12 15 19 19 19 24 23 23 Final Capacity 25 | 8 15 15 20 20 20 20 20 20 20 20 20 20 20 20 20 25 25 25 25 Final Carried 25 | 3 15 15 19 20 19 20 20 16 20 20 12 12 20 20 20 19 25 23 10 Class Distribution -------------------- 32% | Scavenger-Skirmisher 22% | Skirmisher 12% | Mutant 9% | Tank 7% | Scavenger-Tank 6% | Commander-Tank Dominant Class ---------------- Mutant | -10/Materials Mutant | -10/Mines Scavenger-Mutant | -10/Exiles Mutant | -9/Mines Skirmisher | -8/Materials Scavenger-Skirmisher | -8/Garrison Scavenger-Skirmisher | -8/Materials Scavenger-Skirmisher | -8/Garrison Tank | -7/Factory Tank | -7/Lower Caves Tank | -7/Lower Caves Tank | -7/Data Miner Scavenger-Skirmisher | -6/Proximity Caves Scavenger-Skirmisher | -6/Factory Scavenger-Tank | -6/Garrison Commander-Tank | -6/Factory Skirmisher | -6/Lower Caves Scavenger-Skirmisher | -6/Lower Caves Scavenger-Skirmisher | -6/Zion Resources | -11 -10 -10 -10 -9 -8 -8 -8 -8 -7 -7 -7 -7 -6 -6 -6 -6 -6 -6 -6 ----------- Run | Yrd Mat Min Exi Min Mat Gar Mat Gar Fac Low Low Dat Pro Fac Gar Fac Low Low Zio Matter Collected 10364 | 302 358 99 . 30 193 168 648 316 1362 300 289 . 441 57 1504 566 1884 805 1042 Remotely . | . . . . . . . . . . . . . . . . . . . . Salvage Created 9895 | 136 653 454 . 98 531 678 1202 188 2140 220 151 . 341 86 1047 129 856 370 615 Parts 541 | 12 43 21 . 5 31 30 91 10 106 18 4 . 12 4 47 12 18 9 68 Haulers Intercepted 6 | . 1 . . . 2 . 3 . . . . . . . . . . . . Recyclers Shooed 2 | . . . . . . . . . 2 . . . . . . . . . . Parts Field Recycled . | . . . . . . . . . . . . . . . . . . . . Retrieved Matter . | . . . . . . . . . . . . . . . . . . . . Parts Self-Destructed 53 | . . . . . . . . . . 17 3 . 14 . . . 14 5 . Prevented 12 | . . . . . . . . . . . 1 . 9 . . . 2 . . Kills | -11 -10 -10 -10 -9 -8 -8 -8 -8 -7 -7 -7 -7 -6 -6 -6 -6 -6 -6 -6 ------- Run | Yrd Mat Min Exi Min Mat Gar Mat Gar Fac Low Low Dat Pro Fac Gar Fac Low Low Zio Combat Hostiles Destroyed 153 | . 12 4 . 3 6 14 17 8 35 5 2 . 8 1 17 1 11 6 3 Melee 3 | . . . . . . . . . . . . . . . . . 2 1 . Guns 102 | . 9 . . . 4 11 16 2 26 5 2 . 8 . 17 1 1 . . Cannons 27 | . 3 4 . . 1 . 1 2 . . . . . . . . 8 5 3 AOE 14 | . . . . 2 1 1 . 4 5 . . . . 1 . . . . . Classes Destroyed 23 | 3 5 . . . 2 2 . 1 2 1 1 . 1 . 1 . 1 . 3 Worker 18 | 1 1 3 . . 2 . 5 . 3 . . . . 1 . 2 . . . Builder 7 | . . . . . 2 . 1 . 4 . . . . . . . . . . Tunneler 5 | 3 1 . . . . . 1 . . . . . . . . . . . . Hauler 6 | . 1 . . . 2 . 3 . . . . . . . . . . . . Recycler 11 | 1 1 3 . . 1 . 2 . 3 . . . . . . . . . . Minesweeper 3 | . . . . . . . . . . . . . 1 . . . 2 . . Operator 5 | . 1 . . . . . 2 . 1 . . . . . . 1 . . . Watcher 13 | . 3 . . . 1 . 4 . 2 . . . . 1 . 2 . . . Swarmer 29 | . 3 . . . . . 4 4 5 . . . 3 . 6 1 3 . . Grunt 76 | . 9 4 . 3 5 8 7 3 20 2 . . 1 . 3 . 6 5 . Brawler 7 | . . . . . . 1 . . 2 . . . . . 2 . 1 1 . Duelist 4 | . . . . . . . . . 2 1 . . 1 . . . . . . Protector 1 | . . . . . . . . . . . . . . . 1 . . . . Sentry 18 | . . . . . 1 4 4 . 3 . . . . . 5 . 1 . . Specialist 2 | . . . . . . . . 1 . . . . 1 . . . . . . Hunter 6 | . . . . . . 1 2 . . 1 1 . . . 1 . . . . Programmer 6 | . . . . . . . . . 3 . . . 2 1 . . . . . Behemoth 1 | . . . . . . . . . . . 1 . . . . . . . . Zionite 34 | . . . . . . . . . . . . . . . . . . . 34 Decomposer 5 | . . . . . . . . . . . . . . . . . . 5 . Packrat 4 | . . . . . . . . . . . . . . . . . 3 1 . Samaritan 2 | . . . . . . . . . . . . . . . . . 2 . . Master Thief 1 | . . . . . . . . . . 1 . . . . . . . . . Surgeon 1 | . . . . . . . . . . . . . . . . . . . 1 Mutant 1 | . . . . . . . . . . . . . . . . . . . 1 Best Kill Streak 8 | 3 3 8 . 3 4 4 5 6 7 3 1 . 4 1 4 2 4 3 7 Combat Bots Only 7 | . 3 4 . 3 2 4 3 6 7 3 1 . 3 1 4 1 4 3 2 Max Kills in Single Turn 4 | 1 1 1 . 3 3 2 2 3 4 1 1 . 1 1 2 1 2 1 1 Gunslinging 1 | . . . . . . . 1 . . . . . . . 1 . . . . Exploded 2 | . . . . 2 1 1 . 2 2 . . . . 1 . . . . . Melee 1 | . . . . . . . . . . . . . . . . . 1 1 . Uniques/NPCs Destroyed 2 | . . . . . . . . . . . . . . . . . . . 2 AD-0RF (-6/Zion) Imprinter (-6/Zion) Combat | -11 -10 -10 -10 -9 -8 -8 -8 -8 -7 -7 -7 -7 -6 -6 -6 -6 -6 -6 -6 -------- Run | Yrd Mat Min Exi Min Mat Gar Mat Gar Fac Low Low Dat Pro Fac Gar Fac Low Low Zio Hostile Shots Fired 1384 | . 69 51 . 6 10 40 48 147 180 28 63 . 98 29 141 165 39 45 225 Missed 419 | . 19 7 . 4 2 8 9 51 66 11 18 . 29 19 41 43 1 10 81 Damage Taken 15905 | . 606 603 . 24 206 506 553 1280 2228 183 871 . 1168 98 1195 2302 556 737 2789 Core 1772 | . 77 84 . 14 88 48 84 150 143 12 69 . 137 24 64 233 40 137 368 Absorbed by Shields 1047 | . . . . . . . . 143 118 69 14 . . . 333 80 32 . 258 Reduced by Siege Mode 140 | . . . . . . . . . . . . . . . . . 61 79 . Redirected to Shielding 24 | . . . . . . . . . . . . . . . . . . . 24 Ignored by Resistances 22 | . . . . . . . . . . . . . . . . . . . 22 Regen/Repaired (Parts) 410 | . . . . . . . . . 213 . . . . . . 197 . . . Core Remaining (%) 45 | 100 . . . 30 . . . 4 . . . . 48 . . . . . . Volleys Fired 674 | 7 58 22 . 1 40 27 60 18 99 15 13 1 33 8 110 40 13 11 98 Largest 4 | 2 2 2 . 1 4 4 4 4 4 4 4 1 4 4 4 4 4 3 4 Hottest 283 | 40 120 120 . 100 283 244 258 175 193 112 166 5 180 139 139 132 212 179 212 Shots Fired 1771 | 14 116 44 . 1 118 86 226 29 324 60 50 1 76 24 224 99 40 31 208 Gun 1399 | 14 86 13 . . 97 83 208 12 308 60 50 . 70 22 192 83 9 . 92 Cannon 289 | . 28 31 . 1 8 1 18 17 10 . . . . . . . 31 30 114 Launcher . | . . . . . . . . . . . . . . . . . . . . Special 83 | . 2 . . . 13 2 . . 6 . . 1 6 2 32 16 . 1 2 Kinetic 1188 | 14 86 13 . . 6 1 112 11 237 60 48 . 40 18 183 83 40 30 206 Thermal 414 | . 30 31 . 1 112 85 114 18 10 . . . 13 . . . . . . Explosive . | . . . . . . . . . . . . . . . . . . . . Electromagnetic 103 | . . . . . . . . . 71 . 2 . 17 4 9 . . . . Robot Hit Streak 35 | 4 10 8 . 2 19 33 13 10 22 5 11 4 7 10 35 5 8 12 7 Robot Miss Streak 7 | 1 2 4 . . 7 2 5 3 5 6 6 . 4 4 4 4 4 2 4 Penetration Max 1 | . . . . . . . . . 1 1 . . 1 . 1 1 1 . . Secondary Targets 15 | . . . . . . 2 2 . 4 1 . . 2 . 3 1 . . . Max Gunslinging Chain 2 | . . . . . . 1 1 . 1 1 . . 1 . 2 1 . . . Shots Hit Robots 1063 | 9 76 23 4 1 52 57 126 17 222 27 30 1 42 15 128 40 38 34 121 Core Hits 425 | 5 27 12 . 2 23 24 57 12 90 12 8 . 17 7 46 11 18 14 40 Critical Kills 16 | . 1 . . 1 . 1 2 . 5 . . . 1 . 3 1 . . 1 Critical Parts Destroyed 8 | . . . . . . . . . 4 . . . 1 . . 1 1 . 1 Critical Strikes 65 | . 1 . . 1 5 2 8 . 10 . 1 . 2 . 9 2 5 6 13 Burn 12 | . . . . . 5 1 6 . . . . . . . . . . . . Meltdown 3 | . . . . 1 . 1 . . 1 . . . . . . . . . . Destroy 24 | . 1 . . . . . 2 . 8 . 1 . 2 . 5 2 1 . 2 Blast 20 | . . . . . . . . . . . . . . . . . 4 5 11 Corrupt 1 | . . . . . . . . . 1 . . . . . . . . . . Sever 5 | . . . . . . . . . . . . . . . 4 . . 1 . Melee Attacks 81 | . . . 4 . . . 4 . 14 1 . . 2 2 25 . 19 10 . Impact . | . . . . . . . . . . . . . . . . . . . . Slashing 69 | . . . . . . . . . 10 1 . . 2 2 25 . 19 10 . Piercing . | . . . . . . . . . . . . . . . . . . . . Sneak Attacks 27 | . . . 4 . . . 1 . 5 . . . . 1 . . 10 6 . Combat Hostiles . | . . . . . . . . . . . . . . . . . . . . Follow-up Attacks . | . . . . . . . . . . . . . . . . . . . . Damage Inflicted 25646 | 113 1071 382 . 224 1274 1212 2193 1039 5330 572 597 . 884 331 2773 996 1803 1450 3402 Guns 15862 | 113 793 49 . . 810 973 2001 137 4229 572 597 . 884 183 2141 996 217 . 1167 Cannons 5231 | . 278 333 . 82 128 105 127 334 156 . . . . . . . 625 828 2235 Explosions 1890 | . . . . 142 336 134 65 568 593 . . . . 52 . . . . . Melee 2663 | . . . . . . . . . 352 . . . . 96 632 . 961 622 . Ramming . | . . . . . . . . . . . . . . . . . . . . Kinetic 15200 | 113 793 49 . . 45 . 1018 137 3144 572 556 . 537 123 2045 996 842 828 3402 Thermal 6082 | . 278 333 . 224 1084 1212 1175 902 749 . . . 125 . . . . . . Explosive 197 | . . . . . 145 . . . . . . . . 52 . . . . . Electromagnetic 1504 | . . . . . . . . . 1085 . 41 . 222 60 96 . . . . Impact . | . . . . . . . . . . . . . . . . . . . . Slashing 2663 | . . . . . . . . . 352 . . . . 96 632 . 961 622 . Piercing . | . . . . . . . . . . . . . . . . . . . . Highest Corruption 43 | . . . . . . . 1 1 . . . . 18 . . . . . 43 Average Corruption 4 | . . . . . . . 1 1 . . . . 11 . . . . . 9 Corruption Purged 1 | . . . . . . . . . . . . . . . . . . . 1 Corruption Blocked . | . . . . . . . . . . . . . . . . . . . . Effects 64 | . . . . . . . 12 9 . . . . 23 . . . . . 20 Message Errors 14 | . . . . . . . 1 1 . . . . 7 . . . . . 5 Matter Fused 10 | . . . . . . . . 2 . . . . 6 . . . . . 2 Heat Flow Errors 8 | . . . . . . . 2 2 . . . . 2 . . . . . 2 Energy Discharges 8 | . . . . . . . 4 1 . . . . 2 . . . . . 1 Parts Rejected 1 | . . . . . . . . . . . . . . . . . . . 1 Data Loss (minor) 13 | . . . . . . . 2 1 . . . . 4 . . . . . 6 Misfires 3 | . . . . . . . 2 . . . . . . . . . . . 1 Alerts 4 | . . . . . . . . 2 . . . . 1 . . . . . 1 Misdirections 1 | . . . . . . . . . . . . . . . . . . . 1 Weapon Failures 2 | . . . . . . . 1 . . . . . 1 . . . . . . Overload Shots . | . . . . . . . . . . . . . . . . . . . . Overflow Damage 1365 | . . . . 52 . . 53 120 364 . . . . . 2 . 374 280 120 Projectiles 239 | . . . . 52 . . 7 57 3 . . . . . . . . . 120 Explosions 357 | . . . . . . . 46 63 248 . . . . . . . . . . Melee 769 | . . . . . . . . . 113 . . . . . 2 . 374 280 . Knockbacks 15 | . . . . . . . . . . . . . . . . . 4 2 9 Impact . | . . . . . . . . . . . . . . . . . . . . Kinetic 15 | . . . . . . . . . . . . . . . . . 4 2 9 Secondary . | . . . . . . . . . . . . . . . . . . . . Self-Inflicted Damage 537 | . . . . . 74 . . 104 359 . . . . . . . . . . Shots 6 | . . . . . 1 . . 1 4 . . . . . . . . . . Rammed . | . . . . . . . . . . . . . . . . . . . . Targets Rammed . | . . . . . . . . . . . . . . . . . . . . Kicked . | . . . . . . . . . . . . . . . . . . . . Crushed . | . . . . . . . . . . . . . . . . . . . . Highest Temperature 365 | . 69 355 . . 365 285 340 251 306 99 136 . 202 51 311 309 309 358 221 Average Temperature 83 | . 18 151 . . 81 109 96 52 84 46 56 . 67 26 82 70 154 162 61 Received Heat Transfer 4078 | . 348 414 . 15 90 288 189 212 478 48 117 . 129 30 200 903 216 306 95 Effects 6 | . . . . . 1 2 2 . . . . . . . . . 1 . . Energy Bleed 1 | . . . . . . . . . . . . . . . . . 1 . . Interference 5 | . . . . . 1 2 2 . . . . . . . . . . . . Siege Activations 6 | . . . . . . . . . . . . . . . . . 4 2 . Total Turns 94 | . . . . . . . . . . . . . . . . . 51 43 . Longest Duration 28 | . . . . . . . . . . . . . . . . . 28 25 . Robots Corrupted 3 | . . . . . . . . . 3 . . . . . . . . . . Combat Hostiles 3 | . . . . . . . . . 3 . . . . . . . . . . Parts Fried 11 | . . . . . . . . . 11 . . . . . . . . . . Impact Corruptions . | . . . . . . . . . . . . . . . . . . . . Robots Melted 4 | . . . . 1 . 2 . . 1 . . . . . . . . . . Combat Hostiles 4 | . . . . 1 . 2 . . 1 . . . . . . . . . . Parts Melted 22 | . 1 . . . 5 6 5 . 5 . . . . . . . . . . Heat Transferred 10685 | . 592 703 . 160 2386 2247 2818 985 572 . . . 222 . . . . . . Parts Sabotaged 1 | . . . . . . . . . . . . . . . . 1 . . . Parts Stolen 3 | . . . . . . . . . . 1 2 . . . . . . . . Parts Stripped . | . . . . . . . . . . . . . . . . . . . . Power Chain Reactions 2 | . . . . . . . . . 2 . . . . . . . . . . Alert | -11 -10 -10 -10 -9 -8 -8 -8 -8 -7 -7 -7 -7 -6 -6 -6 -6 -6 -6 -6 ------- Run | Yrd Mat Min Exi Min Mat Gar Mat Gar Fac Low Low Dat Pro Fac Gar Fac Low Low Zio Peak Influence 2152 | 25 240 118 . 101 226 611 460 467 554 . . . . 177 2010 2152 . . . Initial 1054 | . 16 48 . . 39 146 297 189 245 . . . . 101 58 1054 . . . Average 430 | 9 104 93 . 94 46 493 326 345 280 . . . . 80 930 1449 . . . Maximum Alert Level 5 | . 1 . . . 1 2 2 2 2 . . . . . 5 5 . . . Low Security (%) 37 | 100 91 100 . 100 95 2 . 23 22 . . . . 100 9 . . . . Level 1 28 | . 8 . . . 4 13 89 48 61 . . . . . 3 . . . . Level 2 17 | . . . . . . 84 10 28 16 . . . . . 33 . . . . Level 3 3 | . . . . . . . . . . . . . . . 9 35 . . . Level 4 6 | . . . . . . . . . . . . . . . 32 20 . . . Level 5 3 | . . . . . . . . . . . . . . . 11 21 . . . High Security 1 | . . . . . . . . . . . . . . . . 22 . . . Max Security . | . . . . . . . . . . . . . . . . . . . . Squads Dispatched 30 | . 2 . . . 2 . 1 . 9 . . . . 1 . 15 . . . Investigation 5 | . 2 . . . . . 1 . 2 . . . . . . . . . . Extermination 3 | . . . . . . . . . 2 . . . . 1 . . . . . Reinforcement 6 | . . . . . 1 . . . 2 . . . . . . 3 . . . Assault 13 | . . . . . . . . . 1 . . . . . . 12 . . . Garrison 3 | . . . . . 1 . . . 2 . . . . . . . . . . Intercept . | . . . . . . . . . . . . . . . . . . . . Searches Triggered . | . . . . . . . . . . . . . . . . . . . . Data Miner Redirects 3 | . . . . . . . . . . . . . . . . 3 . . . Construction Impeded 2 | . . . . . . . . . . . . . . . . 2 . . . Haulers Reinforced . | . . . . . . . . . . . . . . . . . . . . Active Scanning Responses . | . . . . . . . . . . . . . . . . . . . . Cargo Convoy Interrupts . | . . . . . . . . . . . . . . . . . . . . Stealth | -11 -10 -10 -10 -9 -8 -8 -8 -8 -7 -7 -7 -7 -6 -6 -6 -6 -6 -6 -6 --------- Run | Yrd Mat Min Exi Min Mat Gar Mat Gar Fac Low Low Dat Pro Fac Gar Fac Low Low Zio Distress Signals 6 | . 1 . . . . . 2 . 2 . . . . . . 1 . . . Communications Jammed . | . . . . . . . . . . . . . . . . . . . . Distress Signals . | . . . . . . . . . . . . . . . . . . . . Times Spotted 364 | . 20 4 . 3 17 12 27 12 53 9 4 . 18 6 39 58 14 7 61 Peak Tracking Total 17 | . 3 4 . 3 3 4 3 7 7 3 3 . 4 2 6 17 4 3 9 Tactical Retreats 23 | . 2 . . . 1 . 2 2 4 1 . . 1 . 3 1 6 . . Traps | -11 -10 -10 -10 -9 -8 -8 -8 -8 -7 -7 -7 -7 -6 -6 -6 -6 -6 -6 -6 ------- Run | Yrd Mat Min Exi Min Mat Gar Mat Gar Fac Low Low Dat Pro Fac Gar Fac Low Low Zio Traps Triggered 10 | . 2 . . . . . 1 2 1 . . . . . 4 . . . . Indirectly . | . . . . . . . . . . . . . . . . . . . . Trap Hack Attempts 8 | . . . . . 8 . . . . . . . . . . . . . . Triggered . | . . . . . . . . . . . . . . . . . . . . Disarmed . | . . . . . . . . . . . . . . . . . . . . Reprogrammed 2 | . . . . . 2 . . . . . . . . . . . . . . Reused 3 | . . . . . 1 . . . . . . . 2 . . . . . . Traps Extracted . | . . . . . . . . . . . . . . . . . . . . Installed 3 | . . . . . . . . . . . . . 2 . . . . . 1 Triggered 8 | . . . . . 1 . . . . 1 . . 5 . . . 1 . . Most Traps Carried 2 | . . . . . . . . . . . . . 2 . . . 2 2 2 Machines | -11 -10 -10 -10 -9 -8 -8 -8 -8 -7 -7 -7 -7 -6 -6 -6 -6 -6 -6 -6 ---------- Run | Yrd Mat Min Exi Min Mat Gar Mat Gar Fac Low Low Dat Pro Fac Gar Fac Low Low Zio Machines Disabled 39 | . 2 . . 1 2 3 3 . 8 . . . 1 1 9 6 . . 3 Max in Single Turn 5 | . 1 . . 1 1 1 1 . 5 . . . 1 1 1 1 . . 1 Garrison Access 1 | . . . . . . . . . 1 . . . . . . . . . . Garrison Relay 7 | . . . . . . 2 . . . . . . . . 5 . . . . Machines Repaired . | . . . . . . . . . . . . . . . . . . . . Machines Dismantled . | . . . . . . . . . . . . . . . . . . . . Machines Sabotaged . | . . . . . . . . . . . . . . . . . . . . Overloaded Fab Kills . | . . . . . . . . . . . . . . . . . . . . Hacking | -11 -10 -10 -10 -9 -8 -8 -8 -8 -7 -7 -7 -7 -6 -6 -6 -6 -6 -6 -6 --------- Run | Yrd Mat Min Exi Min Mat Gar Mat Gar Fac Low Low Dat Pro Fac Gar Fac Low Low Zio Machines Accessed 59 | . 9 . 2 1 6 . 11 . 14 . . 4 . 7 1 1 2 1 . Terminals 32 | . 7 . . 1 3 . 7 . 10 . . . . 2 1 1 . . . Fabricators 5 | . . . . . . . . . 3 . . . . 2 . . . . . Repair Stations 4 | . 1 . . . . . 2 . . . . . . 1 . . . . . Recycling Units 3 | . 1 . . . 1 . . . . . . . . 1 . . . . . Scanalyzers 3 | . . . . . 1 . 1 . 1 . . . . . . . . . . Garrison Access 3 | . . . . . 1 . 1 . . . . . . 1 . . . . . Total Hacks 192 | . 32 . 24 2 16 . 22 . 43 . . 32 . 14 2 2 2 1 . Successful 124 | . 17 . 24 1 8 . 9 . 20 . . 32 . 8 1 1 2 1 . Failed 68 | . 15 . . 1 8 . 13 . 23 . . . . 6 1 1 . . . Catastrophic 19 | . 4 . . . 1 . 5 . 6 . . . . 2 1 . . . . Database Lockouts . | . . . . . . . . . . . . . . . . . . . . Manual 92 | . 32 . 1 2 12 . 11 . 24 . . . 1 9 . . . . . Terminals 91 | . 26 . . 2 9 . 16 . 32 . . . . 2 2 2 . . . Fabricators 17 | . . . . . . . . . 10 . . . . 7 . . . . . Repair Stations 6 | . 2 . . . . . 3 . . . . . . 1 . . . . . Recycling Units 8 | . 4 . . . 3 . . . . . . . . 1 . . . . . Scanalyzers 5 | . . . . . 3 . 1 . 1 . . . . . . . . . . Garrison Access 6 | . . . . . 1 . 2 . . . . . . 3 . . . . . Terminal Hacks 80 | . 3 . 24 1 . . 4 . 11 . . 32 . . 1 1 2 1 . Record 34 | . . . 23 . . . . . . . . 11 . . . . . . . Part Schematic 13 | . . . . . . . . . 1 . . 12 . . . . . . . Robot Schematic 6 | . . . . . . . . . . . . 6 . . . . . . . Robot Analysis 2 | . . . . 1 . . 1 . . . . . . . . . . . . Prototype ID Bank 5 | . 2 . . . . . . . . . . 3 . . . . . . . Open Door 3 | . . . . . . . . . . . . . . . . . 2 1 . Branch Access Points 1 | . . . . . . . . . 1 . . . . . . . . . . Emergency Access Points 1 | . . . . . . . . . . . . . . . 1 . . . . Terminal Index 1 | . . . . . . . . . 1 . . . . . . . . . . Unreport Threat 4 | . . . . . . . 1 . 3 . . . . . . . . . . Locate Traps 3 | . . . . . . . 1 . 2 . . . . . . . . . . Security Status 1 | . . . . . . . 1 . . . . . . . . . . . . Transport Status 1 | . . . . . . . . . 1 . . . . . . . . . . Registered Components 1 | . . . . . . . . . . . . . . . . 1 . . . Zone Layout 1 | . . . . . . . . . 1 . . . . . . . . . . Patrol Navigation 1 | . . . . . . . . . 1 . . . . . . . . . . Security Stations 1 | . 1 . . . . . . . . . . . . . . . . . . Derelict Proto ID Bank 1 | . . . 1 . . . . . . . . . . . . . . . . Fabricator Hacks 2 | . . . . . . . . . 1 . . . . 1 . . . . . Network Status 2 | . . . . . . . . . 1 . . . . 1 . . . . . Repair Station Hacks . | . . . . . . . . . . . . . . . . . . . . Recycling Unit Hacks . | . . . . . . . . . . . . . . . . . . . . Scanalyzer 3 | . . . . . 3 . . . . . . . . . . . . . . Insert Component 1 | . . . . . 1 . . . . . . . . . . . . . . Analyze 2 | . . . . . 2 . . . . . . . . . . . . . . Garrison Access Hacks 5 | . . . . . 1 . 2 . . . . . . 2 . . . . . Unlock Access 3 | . . . . . 1 . 1 . . . . . . 1 . . . . . Coupler Status 2 | . . . . . . . 1 . . . . . . 1 . . . . . Unauthorized Hacks 34 | . 14 . . . 4 . 3 . 8 . . . . 5 . . . . . Terminals 13 | . 9 . . . 2 . . . 2 . . . . . . . . . . Assimilate 3 | . . . . . 2 . . . 1 . . . . . . . . . . Botnet 1 | . 1 . . . . . . . . . . . . . . . . . . Disrupt 2 | . 2 . . . . . . . . . . . . . . . . . . Operators 2 | . 1 . . . . . . . 1 . . . . . . . . . . Skim 5 | . 5 . . . . . . . . . . . . . . . . . . Fabricators 8 | . . . . . . . . . 5 . . . . 3 . . . . . Prioritize 1 | . . . . . . . . . 1 . . . . . . . . . . Liberate 2 | . . . . . . . . . 1 . . . . 1 . . . . . Fabnet 2 | . . . . . . . . . 1 . . . . 1 . . . . . Haulers 2 | . . . . . . . . . 1 . . . . 1 . . . . . Recompile 1 | . . . . . . . . . 1 . . . . . . . . . . Repair Stations 3 | . 1 . . . . . 2 . . . . . . . . . . . . Mechanics 3 | . 1 . . . . . 2 . . . . . . . . . . . . Recycling Units 7 | . 4 . . . 2 . . . . . . . . 1 . . . . . Monitor 1 | . 1 . . . . . . . . . . . . . . . . . . Reject 1 | . 1 . . . . . . . . . . . . . . . . . . Recyclers 3 | . 1 . . . 1 . . . . . . . . 1 . . . . . Mask 2 | . 1 . . . 1 . . . . . . . . . . . . . . Scanalyzers 2 | . . . . . . . 1 . 1 . . . . . . . . . . Researchers 1 | . . . . . . . 1 . . . . . . . . . . . . Extract 1 | . . . . . . . . . 1 . . . . . . . . . . Garrison Access 1 | . . . . . . . . . . . . . . 1 . . . . . Broadcast 1 | . . . . . . . . . . . . . . 1 . . . . . Data Cores Recovered 2 | . . . . . . . 1 . . . . . . . . 1 . . . Used . | . . . . . . . . . . . . . . . . . . . . Hacking Detections 42 | . 9 . . 1 4 . 8 . 12 . . . . 6 1 1 . . . Full Trace Events 2 | . 1 . . . . . 1 . . . . . . . . . . . . Feedback Events . | . . . . . . . . . . . . . . . . . . . . Feedback Blocked . | . . . . . . . . . . . . . . . . . . . . Robot Schematics Acquired 6 | . . . . . . . . . . . . 6 . . . . . . . Robots Built . | . . . . . . . . . . . . . . . . . . . . Authchips . | . . . . . . . . . . . . . . . . . . . . Time . | . . . . . . . . . . . . . . . . . . . . Total Robot Build Rating . | . . . . . . . . . . . . . . . . . . . . Part Schematics Acquired 20 | . . . . . 1 . . . 3 . . 12 . . . . . . 4 Parts Built . | . . . . . . . . . . . . . . . . . . . . Authchips . | . . . . . . . . . . . . . . . . . . . . Time . | . . . . . . . . . . . . . . . . . . . . Total Part Build Rating . | . . . . . . . . . . . . . . . . . . . . Parts Repaired . | . . . . . . . . . . . . . . . . . . . . Time . | . . . . . . . . . . . . . . . . . . . . Parts Recycled . | . . . . . . . . . . . . . . . . . . . . Recycled Matter . | . . . . . . . . . . . . . . . . . . . . Retrieved Matter . | . . . . . . . . . . . . . . . . . . . . Retrieved Components . | . . . . . . . . . . . . . . . . . . . . Parts Scanalyzed 1 | . . . . . 1 . . . . . . . . . . . . . . Part Schematics Acquired 1 | . . . . . 1 . . . . . . . . . . . . . . Parts Damaged . | . . . . . . . . . . . . . . . . . . . . Bothacking | -11 -10 -10 -10 -9 -8 -8 -8 -8 -7 -7 -7 -7 -6 -6 -6 -6 -6 -6 -6 ------------ Run | Yrd Mat Min Exi Min Mat Gar Mat Gar Fac Low Low Dat Pro Fac Gar Fac Low Low Zio Used RIF Installer 4 | . . . . . . 2 . 1 . . . . . . 1 . . . . Hotswap 1 | . . . . . . . . . . . . . . . 1 . . . . Zone Cloak 1 | . . . . . . . . 1 . . . . . . . . . . . Watcher Feeds 1 | . . . . . . 1 . . . . . . . . . . . . . Robots Hacked 23 | . . . 4 . . . 3 . 4 . . 1 . . 5 4 . 1 1 Non-combat 8 | . . . 3 . . . . . 2 . . . . . . 3 . . . Combat 15 | . . . 1 . . . 3 . 2 . . 1 . . 5 1 . 1 1 Robot Hacks Applied 27 | . . . 4 . . . 3 . 5 . . 1 . . 5 7 . 1 1 parse_system 9 | . . . 4 . . . . . . . . 1 . . 1 1 . 1 1 purge_threat 2 | . . . . . . . . . 1 . . . . . . 1 . . . mark_security 1 | . . . . . . . . . . . . . . . . 1 . . . relay_feed 1 | . . . . . . . . . . . . . . . . 1 . . . disable_weapons 4 | . . . . . . . 2 . . . . . . . 2 . . . . overwrite_iff 1 | . . . . . . . . . 1 . . . . . . . . . . formatsys_low 4 | . . . . . . . . . 2 . . . . . . 2 . . . formatsys_high 5 | . . . . . . . 1 . 1 . . . . . 2 1 . . . Relay Couplers Released 30 | . . . . . . 6 . . 2 . . . . . 22 . . . . Machine Destruction 30 | . . . . . . 6 . . 2 . . . . . 22 . . . . Attached 8 | . . . . . . . 1 . 2 . . . . . 2 3 . . . Fabnet Peak Effective % . | . . . . . . . . . . . . . . . . . . . . Robots Rewired 17 | . . . . . . . . . . . . . 1 1 15 . . . . Allies Hacked . | . . . . . . . . . . . . . . . . . . . . Hacks Repelled . | . . . . . . . . . . . . . . . . . . . . Allies | -11 -10 -10 -10 -9 -8 -8 -8 -8 -7 -7 -7 -7 -6 -6 -6 -6 -6 -6 -6 -------- Run | Yrd Mat Min Exi Min Mat Gar Mat Gar Fac Low Low Dat Pro Fac Gar Fac Low Low Zio Total Allies 35 | . . . . . 2 . 1 . 5 . . . 1 3 19 3 . 1 . Largest Group 12 | . . . . . 2 2 3 2 2 . . . 1 3 10 12 . 1 1 Highest-Rated Group 676 | . . . . . 20 20 35 20 45 . . . 46 96 627 676 . 99 99 Highest-Rated Ally 148 | . . . . . 10 10 15 10 29 . . . 46 32 148 148 . 99 99 Total Orders 39 | . . . . . 9 6 4 2 1 . . . . . 2 15 . . . STAY 12 | . . . . . 4 3 2 1 . . . . . . 1 1 . . . FOLLOW 14 | . . . . . 5 3 2 1 . . . . . . 1 2 . . . AID 13 | . . . . . . . . . 1 . . . . . . 12 . . . Ally Attacks 398 | . . . . . . . 8 18 22 . . . 35 . 122 144 . . 49 Total Damage 14182 | . . . . . . . 118 904 248 . . . 1289 . 3975 5394 . . 2254 Kills 104 | . . . . . . . 1 7 2 . . . 7 . 24 41 . . 22 Allies Corrupted 2 | . . . . . . . . . . . . . . . . 1 . . 1 Allies Melted 1 | . . . . . . . . . . . . . . . . 1 . . . Turrets Deployed 2 | . . . . . . . . 1 . . . . 1 . . . . . . Intel | -11 -10 -10 -10 -9 -8 -8 -8 -8 -7 -7 -7 -7 -6 -6 -6 -6 -6 -6 -6 ------- Run | Yrd Mat Min Exi Min Mat Gar Mat Gar Fac Low Low Dat Pro Fac Gar Fac Low Low Zio Robot Analysis Total 2 | . . . . 1 . . 1 . . . . . . . . . . . . Derelict Logs Recovered 12 | . . 2 . 2 . . . . . . 1 . 2 . . . 2 3 . Drone Launches . | . . . . . . . . . . . . . . . . . . . . Drone Recoveries . | . . . . . . . . . . . . . . . . . . . . Decoded 0b10 Intel 47 | . . . . . . . . . . . . . . 8 27 12 . . . Traps 36 | . . . . . . . . . . . . . . 5 27 4 . . . Emergency Access 10 | . . . . . . . . . . . . . . 3 . 7 . . . Exits 1 | . . . . . . . . . . . . . . . . 1 . . . Exploration | -11 -10 -10 -10 -9 -8 -8 -8 -8 -7 -7 -7 -7 -6 -6 -6 -6 -6 -6 -6 ------------- Run | Yrd Mat Min Exi Min Mat Gar Mat Gar Fac Low Low Dat Pro Fac Gar Fac Low Low Zio Turns Passed 24824 | 110 1834 415 505 80 1479 1100 2194 828 2066 977 771 158 1155 735 2377 974 2666 2858 1542 Spaces Moved 12206 | 52 875 247 348 50 732 580 1025 286 1048 689 450 92 625 552 918 449 1504 1226 458 Core 16 | 5 . . . . . . . 8 . . . . . . . . . . 3 Treads 7112 | 47 875 8 . . . 498 1025 116 . . . . . . 909 449 1504 1226 455 Legs 2988 | . . 13 . . . . . 162 1048 689 110 . 405 552 9 . . . . Wheels 2090 | . . 226 348 50 732 82 . . . . 340 92 220 . . . . . . Hover . | . . . . . . . . . . . . . . . . . . . . Flight . | . . . . . . . . . . . . . . . . . . . . Fastest Speed 50 | 50 160 125 125 140 115 150 160 160 122 125 125 165 112 112 112 150 160 160 240 Average Speed 164 | 149 160 130 139 140 133 158 160 240 140 125 155 165 159 112 180 156 160 221 258 Slowest Speed 1950 | 160 160 330 155 140 165 165 160 1050 260 125 165 180 270 187 320 225 160 240 1950 Overloaded Moves . | . . . . . . . . . . . . . . . . . . . . Propulsion Burnouts . | . . . . . . . . . . . . . . . . . . . . Robots Hopped 2 | . . . . . . . . 2 . . . . . . . . . . . Cave-ins Triggered . | . . . . . . . . . . . . . . . . . . . . Exploration Rate (%) 54 | 3 96 55 71 12 40 50 65 31 36 73 55 78 72 14 94 14 91 94 43 Regions Visited 19 Branch Regions 10 Pre-discovered Areas 7 | . 2 . 1 1 . . . . . . . 1 . . . . 1 1 . Known Exits Taken 7 | . . 1 . . 1 . 1 . 1 . . . 1 1 . 1 . . . Unknown Exits Taken 9 | 1 1 . 1 1 . . . . . 1 1 1 . . . . 1 1 . Scrap Searched 9 | . . . . . . . . . . 1 1 . 1 . . . 3 1 2 Spaces Dug 36 | . 1 . . . 13 . 3 . 6 1 . . 1 1 4 5 1 . . Terrain Destroyed 329 | . 1 . . 19 98 11 9 48 23 4 3 . 3 21 24 16 20 11 18 Melee 14 | . . . . . . . . . 6 1 . . 1 1 4 . 1 . . Projectile 114 | . 1 . . . 13 . 9 1 . 3 3 . 2 . 19 15 19 11 18 AOE 199 | . . . . 19 85 11 . 47 17 . . . . 20 . . . . . Terrain Rammed . | . . . . . . . . . . . . . . . . . . . . Walls Destroyed . | . . . . . . . . . . . . . . . . . . . . Machines Disabled . | . . . . . . . . . . . . . . . . . . . . Actions | -11 -10 -10 -10 -9 -8 -8 -8 -8 -7 -7 -7 -7 -6 -6 -6 -6 -6 -6 -6 --------- Run | Yrd Mat Min Exi Min Mat Gar Mat Gar Fac Low Low Dat Pro Fac Gar Fac Low Low Zio Total 15527 | 67 1188 297 366 58 1123 697 1436 381 1411 763 488 96 717 649 1447 655 1709 1329 650 Wait 1691 | . 223 14 . 3 299 63 277 42 145 45 7 1 16 36 157 129 132 59 43 Move 12184 | 51 874 246 347 49 731 579 1024 281 1047 688 449 91 624 552 917 448 1503 1225 458 Hop 2 | . . . . . . . . 2 . . . . . . . . . . . Pick Up 182 | 3 17 5 8 . 9 4 9 4 29 3 2 . 16 11 17 9 17 9 10 Fast Attach 87 | 6 . 2 . 1 6 4 5 13 13 . . . 6 8 11 1 3 2 6 Attach 94 | . 3 5 . 1 7 2 2 8 13 . 7 . 4 4 7 8 4 7 12 Detach 15 | . . . . 2 2 2 1 2 3 . . . . . 1 2 . . . Swap 165 | . 8 1 2 . 9 6 29 4 24 8 8 3 7 9 20 11 5 2 9 Drop 185 | . 5 2 5 1 12 10 25 7 24 3 2 . 7 19 29 7 10 4 13 Fire 674 | 7 58 22 . 1 40 27 60 18 99 15 13 1 33 8 110 40 13 11 98 Melee 81 | . . . 4 . . . 4 . 14 1 . . 2 2 25 . 19 10 . Ram . | . . . . . . . . . . . . . . . . . . . . Kick . | . . . . . . . . . . . . . . . . . . . . Crush . | . . . . . . . . . . . . . . . . . . . . Escape Stasis 5 | . . . . . . . . . . . . . . . 5 . . . . Rewire 151 | . . . . . . . . . . . . . . . 148 . 3 . . Trap 11 | . . . . . 8 . . . . . . . 2 . . . . . 1 Miscellaneous . | . . . . . . . . . . . . . . . . . . . . Route ------- -11/Scrapyard -10/Materials (discovered 6 exits: *Mat x3 / [*Min x2] / Sub) -10/Mines (discovered 3 exits: *Mat x2 / *Exi) -10/Exiles -9/Mines -8/Materials (discovered 4 exits: *Fac x3 / Gar) -8/Garrison (discovered 2 exits: *Mat x2) -8/Materials (discovered 2 exits: *Fac / Gar) -8/Garrison -7/Factory (discovered 4 exits: *Fac x2 / *Low x2) -7/Lower Caves -7/Lower Caves -7/Data Miner -6/Proximity Caves -6/Factory (discovered 4 exits: [*Fac] / *Low x2 / Gar) -6/Garrison (discovered 3 exits: *Fac x3) -6/Factory -6/Lower Caves -6/Lower Caves (discovered 2 exits: [*Fac] / [*Zio]) -6/Zion (discovered 1 exit: [*Pro]) History --------- Turn | Location | Event 2 | -11/Scrapyard | Met Revision 17 9 | -11/Scrapyard | Discovered new exit (range 16) 111 | -11/Scrapyard | Entered Materials 190 | -10/Materials | Discovered new exit (range 16) 316 | -10/Materials | Build established: Mutant 562 | -10/Materials | Discovered new exit (range 7) 664 | -10/Materials | Discovered new exit (range 11) 989 | -10/Materials | Discovered new exit (range 13) 1059 | -10/Materials | Discovered new exit (range 15) 1645 | -10/Materials | Learned location of 2 exits from Mines 1747 | -10/Materials | Learned Storage garrison access intel 1781 | -10/Materials | Identified exit to Subcaves 1781 | -10/Materials | Learned location of 1 exit from Materials 1804 | -10/Materials | Learned Materials emergency access door positions 1821 | -10/Materials | Learned location of 2 exits from Materials 1837 | -10/Materials | Learned location of Subcaves (-10) 1862 | -10/Materials | Learned Storage trap positions 1899 | -10/Materials | Learned 2 Storage zone layouts 1945 | -10/Materials | Entered Mines 1946 | -10/Mines | Identified exit to Materials 1987 | -10/Mines | Core integrity fell below 50% 2027 | -10/Mines | Lost 6 parts (1p4n1w) 2078 | -10/Mines | Identified exit to Exiles 2226 | -10/Mines | Learned 2 Materials zone layouts 2355 | -10/Mines | Deemed a non-threat by the Exiles lab entrance 2360 | -10/Mines | Entered Exiles 2404 | -10/Exiles | Met 8R-AWN 2421 | -10/Exiles | Met EX-HEX 2457 | -10/Exiles | Met EX-BIN 2478 | -10/Exiles | Aligned with FarCom system 2480 | -10/Exiles | Given EX-Vault access code 2515 | -10/Exiles | Opened EX-Vault 2523 | -10/Exiles | Found YOLO Cannon 2529 | -10/Exiles | Found Field Lobotomy Kit 2534 | -10/Exiles | Found Deploy-a-Sentry 2537 | -10/Exiles | Found Deploy-a-Sentry 2539 | -10/Exiles | Found Deploy-a-Sentry 2576 | -10/Exiles | Warned to stay clear of 0b10 Research branches 2732 | -10/Exiles | Met EX-DEC 2772 | -10/Exiles | Learned location of Zion (-6) 2847 | -10/Exiles | Discovered new exit (range 14) 2865 | -10/Exiles | Stole three prototypes: YOLO Cannon, Field Lobotomy Kit, Deploy-a-Sentry 2865 | -10/Exiles | Entered Mines 2897 | -9/Mines | Met a Derelict bent on vengeance 2907 | -9/Mines | Discovered new exit (range 5) 2930 | -9/Mines | Learned 8 Materials zone layouts 2945 | -9/Mines | Entered Materials 2945 | -8/Materials | Evolved 4 slots: Propulsion x2, Weapon x2 2946 | -8/Materials | Identified exit to Factory 3244 | -8/Materials | Build established: Scavenger-Skirmisher 3726 | -8/Materials | Build established: Skirmisher 4331 | -8/Materials | Garrison activated, responded to threat 4376 | -8/Materials | Identified exit to Garrison 4424 | -8/Materials | Entered Garrison 4424 | -8/Garrison | Accompanied by 2 allies 4560 | -8/Garrison | Triggered checkpoint 4597 | -8/Garrison | Garrison Relay disabled 4754 | -8/Garrison | Triggered checkpoint 4848 | -8/Garrison | Discovered new exit (range 8) 4882 | -8/Garrison | Triggered checkpoint 4907 | -8/Garrison | Build established: Scavenger-Skirmisher 4959 | -8/Garrison | Garrison Relay disabled 5081 | -8/Garrison | Triggered checkpoint 5182 | -8/Garrison | Installed Relay Interface Framework 5193 | -8/Garrison | Discovered new exit (range 13) 5451 | -8/Garrison | Expanded RIF knowledge: Watcher Feeds 5524 | -8/Garrison | Entered Materials 5524 | -8/Materials | Accompanied by 2 allies 6138 | -8/Materials | Build established: Skirmisher 6660 | -8/Materials | Build established: Scavenger-Skirmisher 7656 | -8/Materials | Identified exit to Garrison 7686 | -8/Materials | Discovered exit to Factory (range 10) 7718 | -8/Materials | Entered Garrison 7718 | -8/Garrison | Accompanied by 2 allies 7831 | -8/Garrison | Expanded RIF knowledge: Zone Cloak 7938 | -8/Garrison | YOLO Cannon suddenly exploded 7939 | -8/Garrison | Core integrity fell below 50% 7953 | -8/Garrison | Core integrity fell below 20% 7980 | -8/Garrison | Lost 10 parts (1p4n1u4w) 8009 | -8/Garrison | DAS Turret deployed 8050 | -8/Garrison | Lost 3 parts (1p1n1w) 8068 | -8/Garrison | Triggered checkpoint 8304 | -8/Garrison | Triggered checkpoint 8347 | -8/Garrison | Rescued a captive Derelict 8347 | -8/Garrison | Rescued a captive Derelict 8525 | -8/Garrison | Discovered exit to Factory (range 11) 8546 | -8/Garrison | Entered Factory 8546 | -7/Factory | Accompanied by 1 ally 8546 | -7/Factory | Evolved 2 slots: Utility x2 8548 | -7/Factory | FarCom data flow suspended 8844 | -7/Factory | Build established: Scavenger-Tank 8884 | -7/Factory | Garrison activated, responded to threat 9024 | -7/Factory | Lost 3 parts (2n1u) 9247 | -7/Factory | Discovered new exit (range 4) 9282 | -7/Factory | Identified exit to Lower Caves 9530 | -7/Factory | Build established: Scavenger-Skirmisher 9855 | -7/Factory | Destroyed 7 combat bots 9925 | -7/Factory | Discovered new exit (range 9) 10143 | -7/Factory | Build established: Tank 10612 | -7/Factory | Entered Lower Caves 10612 | -7/Lower Caves | Spotted L6-ORM(f) 10612 | -7/Lower Caves | Spotted J0-MQZ(f) 10613 | -7/Lower Caves | Deploy-a-Sentry stolen by Master Thief 10614 | -7/Lower Caves | Encountered a Master Thief 10614 | -7/Lower Caves | Encountered a Master Thief 10624 | -7/Lower Caves | Destroyed J0-MQZ(f) 11477 | -7/Lower Caves | Discovered new exit (range 6) 11497 | -7/Lower Caves | Encountered a Warlord checkpoint 11589 | -7/Lower Caves | Entered another Lower Caves area 11597 | -7/Lower Caves | Build established: Skirmisher 11675 | -7/Lower Caves | Spotted B-75 Beast 11770 | -7/Lower Caves | Destroyed B-75 Beast 11801 | -7/Lower Caves | Lost 3 parts (2n1w) 12102 | -7/Lower Caves | Discovered new exit (range 18) 12108 | -7/Lower Caves | Spotted BT-QJ8(f) 12108 | -7/Lower Caves | Spotted 5O-3G3(f) 12110 | -7/Lower Caves | Encountered a Master Thief 12110 | -7/Lower Caves | Encountered a Master Thief 12113 | -7/Lower Caves | Adv. Heat Sink stolen by Master Thief 12116 | -7/Lower Caves | Gauss Rifle stolen by Master Thief 12360 | -7/Lower Caves | Entered Data Miner 12360 | -7/Data Miner | Discovered new exit (range 6) 12385 | -7/Data Miner | Met Data Miner 12407 | -7/Data Miner | Build established: Tank 12426 | -7/Data Miner | Learned location of Section 7 (-2) 12426 | -7/Data Miner | Acquired the access code to Warlord's prototype stash 12456 | -7/Data Miner | Received God Mode back door access code from Data Miner 12518 | -7/Data Miner | Entered Proximity Caves 12752 | -6/Proximity Caves | Learned location of 1 exit from Factory 12779 | -6/Proximity Caves | Acquired the password to a Derelict Tinkerer's latest research 12796 | -6/Proximity Caves | Found Prototype Special Weapon 12902 | -6/Proximity Caves | Caught by Unaware searching for contraband prototypes 12948 | -6/Proximity Caves | DAS Turret deployed 12978 | -6/Proximity Caves | Lost 5 parts (1p2n1u1w) 13028 | -6/Proximity Caves | Identified exit to Factory 13239 | -6/Proximity Caves | System corruption reached 10% 13367 | -6/Proximity Caves | Caught by Unaware searching for contraband prototypes 13520 | -6/Proximity Caves | Core integrity fell below 50% 13546 | -6/Proximity Caves | Lost 3 parts (1n2w) 13673 | -6/Proximity Caves | Entered Factory 13673 | -6/Factory | Evolved 2 slots: Utility x2 13674 | -6/Factory | Identified exit to Lower Caves 13846 | -6/Factory | Build established: Scavenger-Skirmisher 14285 | -6/Factory | Discovered new exit (range 5) 14293 | -6/Factory | Identified Molecular Deconstructor 14408 | -6/Factory | Identified exit to Garrison 14408 | -6/Factory | Entered Garrison 14408 | -6/Garrison | Accompanied by 3 allies 14412 | -6/Garrison | Triggered checkpoint 14434 | -6/Garrison | Triggered checkpoint 14548 | -6/Garrison | Garrison Relay disabled 14632 | -6/Garrison | Triggered checkpoint 14696 | -6/Garrison | Build established: Scavenger-Tank 14762 | -6/Garrison | Garrison Relay disabled 15511 | -6/Garrison | Triggered checkpoint 15524 | -6/Garrison | Triggered checkpoint 15543 | -6/Garrison | Triggered checkpoint 15585 | -6/Garrison | Lost 7 allies 15666 | -6/Garrison | Triggered checkpoint 15709 | -6/Garrison | Garrison Relay disabled 15814 | -6/Garrison | Rescued a captive Derelict 15837 | -6/Garrison | Rescued a captive Derelict 15856 | -6/Garrison | Discovered new exit (range 18) 16109 | -6/Garrison | Discovered new exit (range 18) 16126 | -6/Garrison | Triggered checkpoint 16165 | -6/Garrison | Garrison Relay disabled 16197 | -6/Garrison | Rewired Executioner 16236 | -6/Garrison | Spotted B-75 Beast 16266 | -6/Garrison | Allies destroyed B-75 Beast 16432 | -6/Garrison | Triggered checkpoint 16508 | -6/Garrison | Discovered new exit (range 3) 16537 | -6/Garrison | Rewired B-86 Titan 16548 | -6/Garrison | Rewired B-90 Cyclops 16636 | -6/Garrison | Expanded RIF knowledge: Hotswap 16640 | -6/Garrison | Triggered checkpoint 16669 | -6/Garrison | Garrison Relay disabled 16785 | -6/Garrison | Entered Factory 16785 | -6/Factory | Accompanied by 10 allies 16838 | -6/Factory | Build established: Commander-Tank 17135 | -6/Factory | First assault squad dispatched 17155 | -6/Factory | Incoming assault squad redirected 17501 | -6/Factory | Incoming assault squad redirected 17513 | -6/Factory | Incoming assault squad redirected 17541 | -6/Factory | High security lockdown imminent 17621 | -6/Factory | High security lockdown engaged 17708 | -6/Factory | Lost 5 allies 17757 | -6/Factory | Lost 10 parts (1p4n1u4w) 17759 | -6/Factory | Entered Lower Caves 17774 | -6/Lower Caves | Lost 4 allies 17924 | -6/Lower Caves | Learned 4 Factory zone layouts 18149 | -6/Lower Caves | Build established: Gunner 18646 | -6/Lower Caves | Build established: Skirmisher 18668 | -6/Lower Caves | Found Prototype Device 18675 | -6/Lower Caves | Identified Heart of Steel 19923 | -6/Lower Caves | Discovered new exit (range 10) 19953 | -6/Lower Caves | Attracted the attention of an 0b10 checkpoint 20425 | -6/Lower Caves | Entered another Lower Caves area 20519 | -6/Lower Caves | Discovered new exit (range 7) 20520 | -6/Lower Caves | Learned location of 1 exit from Factory 20692 | -6/Lower Caves | Learned 8 Factory zone layouts 20951 | -6/Lower Caves | Core integrity fell below 50% 21004 | -6/Lower Caves | Lost 3 parts (3n) 21443 | -6/Lower Caves | Build established: Scavenger-Skirmisher 21970 | -6/Lower Caves | Heart of Steel transformed into Warbot 22170 | -6/Lower Caves | Encountered a Warlord checkpoint 23255 | -6/Lower Caves | Discovered new exit (range 5) 23283 | -6/Lower Caves | Entered Zion 23283 | -6/Zion | Accompanied by 1 ally (Warbot) 23444 | -6/Zion | Discovered new exit (range 8) 23865 | -6/Zion | RIF detected upon attempting to enter Zion 23865 | -6/Zion | Attacked by Zionites 23865 | -6/Zion | Spotted JK-Z0K(B) 23865 | -6/Zion | Spotted XJ-SFW(B) 23878 | -6/Zion | Allies destroyed XJ-SFW(B) 23890 | -6/Zion | Allies destroyed JK-Z0K(B) 23965 | -6/Zion | AD-0RF came to Zion's defense 23983 | -6/Zion | Destroyed AD-0RF 24000 | -6/Zion | Destroyed Imprinter 24041 | -6/Zion | Extracted access codes from Imprinter's data core 24724 | -6/Zion | System corruption reached 10% 24758 | -6/Zion | System corruption reached 30% 24762 | -6/Zion | Core integrity fell below 20% 24799 | -6/Zion | Lost 19 parts (2p6n8u3w) 24825 | -6/Zion | Destroyed by Q8-2VM(z) with Makeshift Axe Last Messages --------------- 24783_ System corrupted: Energy discharge (-16). 24783_ Q8-2VM(z) heat damages Mak. Leg, Backup Power III. 24783_ Q8-2VM(z) overheating. 24790_ R1-WOH(z) destroyed. 24790_ Q8-2VM(z) overheating. 24791_ Q8-2VM(z) heat short circuits Backup Laser III. 24791_ Q8-2VM(z) overheating. 24792_ Q8-2VM(z) heat spikes uncontrollably. 24792_ Q8-2VM(z) overheating. 24793_ Q8-2VM(z) heat short circuits Mak. Leg. 24793_ Q8-2VM(z) overheating. 24795_ Q8-2VM(z) pulls a Mak. Axe out of the Twisted Machinery. 24795_ Q8-2VM(z) overheating. 24797_ Q8-2VM(z) heat damages Broken Backup Laser III. 24797_ Q8-2VM(z) overheating. 24799_ Q8-2VM(z) heat short circuits Angular Momentum Engine. 24799_ Q8-2VM(z) overheating. 24815_ System corrupted: Imp. Hardlight Generator rejected. 24822_ Q8-2VM(z) follow-up attacks with Mak. Spear. 24822_ Critical hit (Impale). Map ----- +----------------------------------------------------+ | ?????????????????????????????????????????????????? | | ?????????????????????????????????????????????????? | | ?????????????????????????????????????????????????? | | ?????????????????????????????????????????????????? | | ?????????????????????????????????????????????????? | | ?????????????????????????????????????????????????? | | ????????????????????????? ?????????????????????? | | ???????????????????????"" ?????????????????????? | | ???????????????????? " ????????????????????? | | ???????????????????? "????????????????????? | | ???????????????????" "????????????????????? | | ??????????????????"" #????????????????????? | | ??????????????????" "????????????????????? | | ?????????????????" ""???????????????????? | | ????????????????"" ""???????????????????? | | ????????????????" "" """??????????????????? | | ????????????????""""" " ""###????????????????? | | ????????????????#"# " "" """"#????????????????? | | ???????????????"""" " """"#????????????????? | | ??????????????""""" " %""#"#?????###?######## | | ??????????? """""" """"#######"###"#"##"# | | ??????????" ! "#;"""""""""""""" | | ?????????? /* " """"""""""""" | | ??????????????"""""""* [ =c | | ????????????????#" z $$ * | | ???????????? "" !@ =%=! = | | ????????????? "" * <<< """ " """""#"" | | ???????????? " % <$< "" = """"""""" | | ??????????? <<< " "#"" | | ?????????? """ " ! / """ | | ??????????? """"####"" =* """""" | | ?????????? ""##???#""" """ =!! "" | | ??????????? ?????????##"" ""#" " != """ | | ???????????" ???????????#"" ""#" " " """""" """ | | ????????????"????????????#"" """" """ """#" | | ?????????????????????????#"" """ """###"" | | ??????????????????????????#? " ""#??#""""" | | ???????????????????????????" " ""????#### | | ???????????????????????????? " "????????## | | ????????????????????????????? "?????????? | | ????????????????????????????? "?????????? | | ????????????????????????????""" "" ?????????? | | ??????????????????????????????"" """"" ?????????? | | ???????????????????????????????""""??""??????????? | | ???????????????????????????????"#????????????????? | | ?????????????????????????????????????????????????? | | ?????????????????????????????????????????????????? | | ?????????????????????????????????????????????????? | | ?????????????????????????????????????????????????? | | ?????????????????????????????????????????????????? | +----------------------------------------------------+ Best States ------------- Heat Dissipation 64 Coolant Potential 65 Energy Generation 23 Energy Capacity 300 Matter Stores 300 Matter Capacity 300 Sight Range 20 Robot Scan Range 16 Terrain Scan Density 110 Cloak Strength 3 Base Temperature (-) 100 Armor Coverage 600 Resistance: KI 20 Core Shielding 30 Weapon Cycling 20 Evasion (%) 55 Targeting Accuracy 8 Core Analysis 6 Recoil Reduction 4 Offensive Hacking 20 Defensive Hacking 22 Relay Coupler Types 1 Relay Coupler Value 31 Item Schematics ----------------- Cld. Ion Engine | -8/Materials | Scanalyzed Imp. Remote Datajack | -7/Factory | Hacked Imp. Melee Analysis Suite | -7/Factory | Extracted Imp. Shield Generator | -7/Factory | Extracted Combat Drone Bay | -7/Data Miner | Free Lgt. Regenerative Plating | -7/Data Miner | Free Biomechanical Wings | -7/Data Miner | Free Thermal Defense Suite | -7/Data Miner | Free Prc. Rocket Launcher | -7/Data Miner | Free Antigrav System | -7/Data Miner | Free Imp. Dynamic Insulation System | -7/Data Miner | Free Enh. Gauss Cannon | -7/Data Miner | Free Imp. Cryofiber Web | -7/Data Miner | Free Hvy. Phase Cannon | -7/Data Miner | Free Mass Driver | -7/Data Miner | Free Adv. Power Amplifier | -7/Data Miner | Free Power Sword | -6/Zion | Archive Adv. Drone Bay | -6/Zion | Archive System Guard | -6/Zion | Archive Field Propulsion Drive | -6/Zion | Archive Robot Schematics ------------------ E-15 Imp | -7/Data Miner | Free W-25 Informer | -7/Data Miner | Free M-22 Extractor | -7/Data Miner | Free R-10 Processor | -7/Data Miner | Free Y-54 Guardian | -7/Data Miner | Free G-50 Soldier | -7/Data Miner | Free Fabricated ------------ Nothing Alien Tech Used ----------------- None Achievements -------------- Monster Short-term Sacrifices Challenges ------------ None Game ------ Seed BombardmentTerrabombMount Manual? 0 Play Time 04:28:48 Cumulative 103.1 hours Start 2024.09.18 @ 16:04:07 End 2024.09.19 @ 10:08:09 Sessions 3 Manual Loads 0 Difficulty Rogue Special Mode None Game No. 55 Rogue 55 Adventurer 0 Explorer 0 Win Type - Total 0 Types 0/0/0/0/0/0/0/0/0 Lore% 47 Gallery% 64 Achievement% 53 Wizard Run 0 Options --------- Layout 0 ASCII 0 Keyboard 0 Movement Mouse Keybinds 0 Fullscreen 1 Font 24/Smallcaps Map View 183x50 Zoom Use 0% Tactical HUD 1 Map Filters NONE Filters NONE Steam 0 RUN: 23eb66b9-e254-4618-bcce-74b6e898852a